bitfinex-derivatives/quotes_SOLF0:USTF0_20250110
["timestamp","ask_amount","ask_price","bid_price","bid_amount"]
[1736504515744,2.6084,191.7,191.59,4.5945]
[1736504516046,4.59542211,191.69,191.65,2.6089]
[1736504516247,10.45849656,191.66,191.55,3.05801059]
[1736504516441,4.59536076,191.65,191.59,2.6098]
[1736504516646,2.6094,191.62,191.55,3.05801059]
[1736504516839,10.45849656,191.63,191.57,2.61]
[1736504517047,4.59186076,191.62,191.55,3.05801059]
[1736504517346,13.06779656,191.63,191.55,3.05801059]
[1736504517540,10.45849656,191.63,191.54,1.5532]
[1736504517743,4.58699525,191.62,191.58,2.6098]
[1736504517942,10.45849656,191.63,191.54,1.5532]
[1736504518141,10.45849656,191.63,191.56,2.6101]
[1736504518339,10.45849656,191.63,191.54,1.5532]
[1736504518545,10.45849656,191.66,191.54,12.01169656]
[1736504518749,9.72025282,191.7,191.54,12.01169656]
[1736504518950,10.45849656,191.68,191.54,12.01169656]
[1736504519256,10.45849656,191.68,191.57,10.45849656]
[1736504519843,10.45849656,191.68,191.66,2.6088]
[1736504520048,10.45849656,191.68,191.57,10.45849656]
[1736504520447,10.45849656,191.71,191.67,2.6087]
[1736504520645,10.45849656,191.71,191.6,10.45849656]
[1736504520848,10.45849656,191.71,191.61,3.1169]
[1736504521049,15.03849656,191.74,191.61,3.1169]
[1736504521246,4.58459505,191.73,191.68,2.6085]
[1736504521445,4.58459505,191.72,191.68,2.6085]
[1736504521748,17.64629656,191.74,191.62,1.4967]
[1736504521950,4.58519022,191.73,191.69,2.6084]
[1736504522155,4.58519022,191.72,191.69,2.6084]
[1736504522357,17.64629656,191.74,191.69,2.6084]
[1736504522554,4.58554858,191.73,191.69,2.6084]
[1736504522750,4.58554858,191.72,191.69,2.6084]
[1736504522950,17.64629656,191.74,191.69,2.6084]
[1736504523153,4.58565305,191.73,191.69,2.6084]
[1736504523353,4.58565305,191.72,191.69,2.6084]
[1736504523556,17.64629656,191.74,191.69,2.6084]
[1736504523753,4.58664545,191.73,191.69,2.6084]
[1736504523952,17.64629656,191.74,191.69,2.6084]
[1736504524154,4.58663312,191.73,191.69,2.6084]
[1736504524452,4.58663312,191.72,191.69,2.6084]
[1736504527060,4.58910384,191.71,191.69,2.6084]
[1736504527262,22.77952075,191.74,191.69,2.6084]
[1736504527461,4.59064665,191.73,191.69,2.6084]
[1736504527651,4.59064665,191.72,191.69,2.6084]
[1736504527857,4.59064665,191.71,191.69,2.6084]
[1736504528154,4.59064665,191.7,191.69,2.6084]
[1736504529061,4.59064665,191.72,191.69,2.6084]
[1736504530253,7.74112419,191.73,191.69,2.6084]
[1736504530254,2.6079,191.73,191.69,2.6084]
[1736504530459,12.34373317,191.73,191.69,2.6084]
[1736504530655,4.59547815,191.72,191.69,2.6084]
[1736504532365,4.59677153,191.71,191.69,2.6084]
[1736504532564,4.59677153,191.7,191.69,2.6084]
[1736504532765,4.59677153,191.72,191.69,2.6084]
[1736504533067,4.59677153,191.71,191.69,2.6084]
[1736504533368,4.59677153,191.7,191.69,2.6084]
[1736504533561,9.73857319,191.72,191.69,2.6084]
[1736504533867,4.59677153,191.71,191.69,2.6084]
[1736504534063,4.59677153,191.7,191.69,2.6084]
[1736504534958,4.59723291,191.7,191.69,2.6084]
[1736504536161,4.59625479,191.7,191.62,1.4967]
[1736504536369,10.45849656,191.67,191.61,3.1169]
[1736504536665,4.59625479,191.66,191.61,3.1169]
[1736504536866,4.59625479,191.65,191.61,3.1169]
[1736504537167,4.59625479,191.64,191.61,3.1169]
[1736504537365,11.29304283,191.63,191.62,2.6093]
[1736504538468,6.69678804,191.65,191.63,2.6092]
[1736504538667,4.54132803,191.64,191.63,2.6092]
[1736504540068,4.54272347,191.64,191.63,2.6092]
[1736504542072,4.54502731,191.64,191.63,2.6092]
[1736504542272,4.54502731,191.66,191.63,2.6092]
[1736504542468,4.54562012,191.65,191.63,2.6092]
[1736504542663,4.54562012,191.64,191.63,2.6092]
[1736504542868,4.54562012,191.66,191.63,2.6092]
[1736504543070,4.54562012,191.65,191.63,2.6092]
[1736504543269,4.54562012,191.64,191.63,2.6092]
[1736504543469,4.54562012,191.66,191.63,2.6092]
[1736504543670,4.54562012,191.65,191.63,2.6092]
[1736504543871,4.5472199,191.64,191.63,2.6092]
[1736504544471,15.60940988,191.7,191.66,2.6088]
[1736504544770,4.54805268,191.69,191.66,2.6088]
[1736504544972,4.54805268,191.68,191.66,2.6088]
[1736504545173,4.54805268,191.67,191.66,2.6088]
[1736504547674,4.55108362,191.69,191.66,2.6088]
[1736504547871,4.55108362,191.68,191.66,2.6088]
[1736504548071,4.55108362,191.67,191.66,2.6088]
[1736504548268,15.01336127,191.67,191.61,3.1169]
[1736504548471,9.70268215,191.66,191.55,12.03497765]
[1736504548681,4.55108362,191.65,191.55,12.03497765]
[1736504548976,9.70268215,191.65,191.55,12.03497765]
[1736504549177,7.16028362,191.64,191.6,2.6096]
[1736504549370,4.55108362,191.63,191.6,2.6096]
[1736504549677,4.55112755,191.62,191.59,2.6098]
[1736504549871,2.6093,191.63,191.59,2.6098]
[1736504550070,4.55116004,191.62,191.59,2.6098]
[1736504550377,4.55199455,191.61,191.59,2.6098]
[1736504550578,13.07137765,191.64,191.59,2.6098]
[1736504550877,4.55158864,191.63,191.6,2.6097]
[1736504551175,4.55158864,191.62,191.6,2.6097]
[1736504551476,13.07137765,191.64,191.6,2.6097]
[1736504551671,4.55338966,191.63,191.6,2.6097]
[1736504551873,4.55338966,191.62,191.6,2.6097]
[1736504552177,13.07137765,191.64,191.6,2.6097]
[1736504552374,4.5550536,191.63,191.6,2.6097]
[1736504552570,4.5550536,191.62,191.6,2.6097]
[1736504552874,4.5550536,191.61,191.6,2.6097]
[1736504555382,4.55808737,191.61,191.55,2.6103]
[1736504555580,4.55808737,191.6,191.53,1.5263]
[1736504555781,5.15939863,191.64,191.53,1.5263]
[1736504556081,4.55828925,191.63,191.53,1.5263]
[1736504556280,4.55828925,191.62,191.53,1.5263]
[1736504556475,4.55828925,191.61,191.53,1.5263]
[1736504556677,4.55828925,191.6,191.54,10.46227765]
[1736504556882,5.15939863,191.64,191.54,10.46227765]
[1736504557178,4.55829397,191.63,191.61,2.6095]
[1736504557368,9.7176926,191.63,191.61,2.6095]
[1736504557569,4.55829397,191.62,191.61,2.6095]
[1736504558178,5.15939863,191.63,191.62,2.6094]
[1736504558670,9.71851273,191.63,191.62,2.6094]
[1736504558870,5.15939863,191.63,191.62,2.6094]
[1736504559069,4.5591141,191.63,191.62,2.6094]
[1736504559281,2.609,191.65,191.62,2.6094]
[1736504559480,5.159924,191.63,191.62,2.6094]
[1736504559680,9.71847395,191.63,191.61,2.6095]
[1736504559881,4.55854995,191.62,191.61,2.6095]
[1736504565179,4.55854995,191.62,191.56,6.69697757]
[1736504565180,4.556852,191.62,191.56,6.69697757]
[1736504565381,4.556852,191.61,191.56,6.69697757]
[1736504565586,4.556852,191.6,191.56,6.69697757]
[1736504565784,6.69697757,191.63,191.56,6.69697757]
[1736504565985,4.55675648,191.62,191.56,6.69697757]
[1736504566185,4.55675648,191.61,191.56,6.69697757]
[1736504566485,4.55675648,191.6,191.59,2.6098]
[1736504566676,4.55675648,191.6,191.56,6.69697757]
[1736504566880,11.85498002,191.63,191.56,6.69697757]
[1736504567082,4.55686676,191.62,191.61,2.6095]
[1736504567279,4.5570907,191.62,191.56,6.69697757]
[1736504567484,4.5570907,191.61,191.56,6.69697757]
[1736504567685,6.69697757,191.63,191.56,6.69697757]
[1736504567882,4.50289907,191.62,191.56,6.69697757]
[1736504568083,4.50289907,191.61,191.56,6.69697757]
[1736504568284,6.69697757,191.63,191.56,6.69697757]
[1736504568486,4.50298855,191.62,191.56,6.69697757]
[1736504568687,4.50298855,191.61,191.53,1.5263]
[1736504568887,6.69697757,191.63,191.57,6.69697757]
[1736504569086,4.5034924,191.62,191.57,6.69697757]
[1736504569282,4.5034924,191.61,191.57,6.69697757]
[1736504569488,2.6089,191.66,191.57,6.69697757]
[1736504569687,6.69697757,191.64,191.57,6.69697757]
[1736504569984,4.50443916,191.63,191.61,6.69697757]
[1736504570188,6.69697757,191.68,191.61,6.69697757]
[1736504570490,6.69697757,191.68,191.62,1.6098]
[1736504571188,6.69697757,191.68,191.66,2.6087]
[1736504571488,6.69697757,191.68,191.62,1.6098]
[1736504571688,2.6081,191.72,191.68,2.6086]
[1736504571985,6.69697757,191.71,191.63,8.30467757]
[1736504572388,6.69697757,191.71,191.68,2.6085]
[1736504572584,6.69697757,191.71,191.63,8.30467757]
[1736504573884,6.69697757,191.71,191.68,2.6085]
[1736504574286,4.5,191.74,191.63,8.30467757]
[1736504574494,6.69697757,191.71,191.7,2.6083]
[1736504575988,2.6079,191.74,191.71,2.6082]
[1736504576193,6.69697757,191.72,191.71,2.6082]
[1736504577488,2.6082,191.71,191.67,2.6086]
[1736504577786,6.69697757,191.68,191.67,2.6086]
[1736504579795,6.69697757,191.68,191.63,3.1617]
[1736504580196,4.43917422,191.67,191.63,3.1617]
[1736504580498,4.43917422,191.66,191.63,3.1617]
[1736504580698,6.69697757,191.68,191.65,2.6089]
[1736504580899,4.4399496,191.67,191.63,3.1617]
[1736504581094,4.4399496,191.66,191.63,3.1617]
[1736504581299,6.69697757,191.68,191.66,2.6089]
[1736504581499,4.43884178,191.67,191.66,2.6089]
[1736504582498,4.4370987,191.67,191.66,2.6089]
[1736504582895,4.4370987,191.67,191.63,3.1617]
[1736504582896,4.4370987,191.67,191.65,2.6089]
[1736504583096,4.4370987,191.66,191.65,2.6089]
[1736504586203,11.13407627,191.66,191.48,142.59742804]
[1736504586401,6.69697757,191.64,191.56,1.6319]
[1736504586598,6.69697757,191.62,191.56,1.6319]
[1736504586794,6.69697757,191.6,191.56,1.6319]
[1736504587200,4.43128546,191.59,191.56,1.6319]
[1736504587502,6.69697757,191.6,191.56,1.6319]
[1736504587697,4.42994313,191.59,191.56,1.6319]
[1736504587894,6.69697757,191.6,191.56,4.242]
[1736504588095,4.42988315,191.59,191.56,1.6319]
[1736504588296,6.69697757,191.6,191.56,1.6319]
[1736504588502,4.42951549,191.59,191.56,1.6319]
[1736504588805,6.69697757,191.61,191.56,1.6319]
[1736504589007,4.42927808,191.6,191.56,1.6319]
[1736504589209,6.69697757,191.61,191.56,1.6319]
[1736504589407,4.42875016,191.6,191.56,1.6319]
[1736504589605,4.42875016,191.59,191.58,2.6099]
[1736504589809,6.69697757,191.63,191.56,8.32887757]
[1736504590408,6.69697757,191.63,191.61,2.6094]
[1736504590804,6.69697757,191.63,191.56,1.6319]
[1736504591005,6.69697757,191.63,191.6,2.6097]
[1736504594406,6.69697757,191.63,191.56,8.32887757]
[1736504594706,6.69697757,191.65,191.62,2.6094]
[1736504595109,2.6088,191.67,191.6,6.69697757]
[1736504595110,6.69697757,191.67,191.6,6.69697757]
[1736504595312,4.48,191.71,191.56,1.6319]
[1736504595611,6.69697757,191.67,191.61,6.69697757]
[1736504595906,6.69697757,191.67,191.64,2.609]
[1736504598710,6.69697757,191.67,191.65,2.609]
[1736504599708,6.69697757,191.67,191.66,2.6089]
[1736504599905,4.31618191,191.67,191.66,2.6089]
[1736504602214,6.69697757,191.69,191.66,2.6089]
[1736504602414,4.31612914,191.68,191.66,2.6089]
[1736504602612,4.31612914,191.67,191.66,2.6089]
[1736504603013,4.31612914,191.68,191.66,2.6089]
[1736504603213,4.31612914,191.67,191.66,2.6089]
[1736504603721,4.31612914,191.68,191.66,2.6089]
[1736504603920,4.31612914,191.67,191.66,2.6089]
[1736504604122,4.31612914,191.68,191.63,6.69697757]
[1736504604421,4.31637909,191.67,191.63,6.69697757]
[1736504604622,4.31637909,191.66,191.65,2.609]
[1736504604812,4.31652992,191.68,191.63,6.69697757]
[1736504605015,4.31652992,191.67,191.63,6.69697757]
[1736504605217,4.31652992,191.66,191.61,6.69697757]
[1736504605413,6.69697757,191.67,191.61,6.69697757]
[1736504605624,4.31661703,191.66,191.64,2.609]
[1736504605825,6.69697757,191.67,191.64,2.609]
[1736504606017,6.69697757,191.67,191.6,6.69697757]
[1736504607124,6.69697757,191.67,191.65,2.609]
[1736504615033,6.69697757,191.67,191.62,6.69697757]
[1736504617235,6.69697757,191.67,191.65,2.609]
[1736504622838,6.69697757,191.67,191.64,2.6091]
[1736504626836,6.69697757,191.67,191.56,1.6319]
[1736504627037,6.69697757,191.63,191.6,2.6096]
[1736504639050,2.6094,191.62,191.58,2.6099]
[1736504639251,6.69697757,191.61,191.55,39.65873001]
[1736504639551,6.69697757,191.61,191.5,7.2536549]
[1736504639552,9.30667757,191.61,191.56,2.6101]
[1736504639745,9.30667757,191.61,191.53,6.69697757]
[1736504640147,9.30667757,191.61,191.55,2.6103]
[1736504640148,6.69697757,191.61,191.55,2.6103]
[1736504640345,4.46,191.66,191.55,2.6103]
[1736504640545,6.69697757,191.61,191.54,6.69697757]
[1736504640753,2.6094,191.63,191.54,6.69697757]
[1736504641049,4.46,191.66,191.56,6.69697757]
[1736504641245,6.69697757,191.65,191.58,6.69697757]
[1736504641847,6.69697757,191.65,191.62,2.6093]
[1736504643953,6.69697757,191.65,191.58,6.69697757]
[1736504644144,6.69697757,191.65,191.63,2.6092]
[1736504644349,6.69697757,191.65,191.59,1.4835]
[1736504644350,4.09569611,191.7,191.6,6.69697757]
[1736504644553,6.69697757,191.67,191.6,6.69697757]
[1736504644949,6.70409611,191.7,191.62,6.69697757]
[1736504645258,4.09569611,191.7,191.64,6.69697757]
[1736504645444,6.69697757,191.71,191.64,6.69697757]
[1736504645853,6.69697757,191.71,191.66,2.6087]
[1736504646354,6.69697757,191.71,191.67,2.6087]
[1736504648749,2.6081,191.72,191.67,2.6087]
[1736504648954,6.69697757,191.72,191.69,2.6084]
[1736504649146,6.69697757,191.72,191.66,6.69697757]
[1736504649851,6.69697757,191.72,191.68,2.6086]
[1736504650657,9.30507757,191.72,191.67,2.6087]
[1736504651054,4.46,191.78,191.66,6.69697757]
[1736504651356,6.69697757,191.72,191.66,6.69697757]
[1736504651751,6.69697757,191.72,191.68,2.6085]
[1736504652354,9.30507757,191.72,191.67,2.6087]
[1736504657360,6.69697757,191.68,191.6,1.5538]
[1736504657559,4.46,191.71,191.6,8.25077757]
[1736504657761,6.69697757,191.66,191.6,8.25077757]
[1736504658260,6.69697757,191.66,191.63,2.6091]
[1736504658464,6.69697757,191.68,191.6,8.25077757]
[1736504658863,6.69697757,191.68,191.64,2.6091]
[1736504660463,9.30557757,191.68,191.64,2.6091]
[1736504667970,6.69697757,191.68,191.6,8.25077757]
[1736504668170,6.69697757,191.68,191.65,2.609]
[1736504668668,2.6085,191.69,191.6,8.25077757]
[1736504668876,6.69697757,191.71,191.64,6.69697757]
[1736504669368,6.69697757,191.71,191.68,2.6085]
[1736504673277,9.30517757,191.71,191.68,2.6085]
[1736504673979,7.95731983,191.8,191.66,6.69697757]
[1736504674166,9.30487757,191.74,191.66,6.69697757]
[1736504674676,9.30487757,191.74,191.7,2.6082]
[1736504678977,6.69697757,191.72,191.7,2.6082]
[1736504688488,6.69697757,191.74,191.71,2.6081]
[1736504690091,6.69697757,191.74,191.72,2.608]
[1736504693990,2.6077,191.75,191.72,2.608]
[1736504694491,2.6075,191.76,191.73,2.6078]
[1736504694696,6.69697757,191.75,191.73,2.6078]
[1736504696196,2.6075,191.76,191.73,2.6078]
[1736504696395,6.69697757,191.74,191.73,2.6078]
[1736504700599,4.46,191.79,191.7,6.69697757]
[1736504700793,6.69697757,191.77,191.7,6.69697757]
[1736504703307,6.69697757,191.77,191.74,2.6077]
[1736504703705,6.69697757,191.77,191.7,6.69697757]
[1736504704004,2.6071,191.79,191.72,6.69697757]
[1736504704198,2.6071,191.79,191.68,1.5449]
[1736504704199,10.70383154,191.85,191.74,6.69697757]
[1736504704407,6.69697757,191.82,191.77,2.6072]
[1736504705309,9.30377757,191.82,191.78,2.6072]
[1736504705908,6.69697757,191.82,191.79,2.607]
[1736504706301,4.46,191.83,191.78,6.69697757]
[1736504706504,9.11263154,191.9,191.82,6.69697757]
[1736504706708,6.69697757,191.88,191.82,6.69697757]
[1736504707703,4.46,191.91,191.82,6.69697757]
[1736504708006,6.69697757,191.89,191.82,6.69697757]
[1736504708208,6.69697757,191.89,191.84,6.69697757]
[1736504708409,7.0653,191.93,191.87,2.6059]
[1736504708708,6.69697757,191.91,191.87,2.6059]
[1736504711303,6.69697757,191.89,191.84,6.69697757]
[1736504712009,6.69697757,191.89,191.86,2.6061]
[1736504716311,5.9754,191.94,191.86,2.6061]
[1736504716510,6.69697757,191.9,191.86,2.6061]
[1736504716911,5.9754,191.94,191.86,2.6061]
[1736504717108,6.69697757,191.91,191.86,2.6061]
[1736504718112,9.30247757,191.91,191.86,2.6061]
[1736504719917,9.30247757,191.91,191.84,6.69697757]
[1736504720116,9.30247757,191.91,191.87,2.606]
[1736504721217,2.6055,191.91,191.87,2.606]
[1736504721519,6.69697757,191.9,191.87,2.606]
[1736504723519,2.6055,191.91,191.87,2.606]
[1736504723815,9.30247757,191.91,191.87,2.606]
[1736504727917,6.69697757,191.89,191.78,3.0832]
[1736504728116,6.69697757,191.86,191.8,6.69697757]
[1736504728517,9.30317757,191.86,191.82,2.6066]
[1736504729617,9.30317757,191.86,191.83,2.6065]
[1736504731122,6.69697757,191.86,191.83,2.6065]
[1736504737432,9.30317757,191.86,191.83,2.6065]
[1736504737728,9.30317757,191.86,191.84,2.6064]
[1736504737729,6.69697757,191.86,191.84,2.6064]
[1736504738118,6.69697757,191.86,191.8,6.69697757]
[1736504739026,6.69697757,191.84,191.78,9.78017757]
[1736504739726,6.69697757,191.84,191.81,2.6067]
[1736504740134,6.69697757,191.84,191.8,2.6069]
[1736504740135,9.30347757,191.84,191.8,2.6069]
[1736504743033,2.6065,191.84,191.81,2.6067]
[1736504743226,6.69697757,191.84,191.81,2.6067]
[1736504744730,6.69697757,191.84,191.82,2.6066]
[1736504746238,6.69697757,191.84,191.79,2.607]
[1736504746435,6.69697757,191.84,191.78,9.78017757]
[1736504746736,7.0661,191.87,191.84,2.6064]
[1736504746937,4.46,191.91,191.82,6.69697757]
[1736504747143,6.69697757,191.9,191.84,6.69697757]
[1736504747440,6.69697757,191.9,191.88,2.6058]
[1736504749438,6.69697757,191.9,191.87,2.606]
[1736504750938,6.061,191.93,191.86,2.6061]
[1736504750939,6.69697757,191.88,191.86,2.6061]
[1736504751136,6.69697757,191.88,191.78,3.0832]
[1736504751340,6.69697757,191.86,191.8,6.69697757]
[1736504751534,6.69697757,191.86,191.83,2.6064]
[1736504751740,2.606,191.87,191.83,2.6064]
[1736504753840,6.061,191.93,191.83,2.6064]
[1736504753841,9.30317757,191.86,191.83,2.6064]
[1736504754241,9.30317757,191.86,191.78,3.0832]
[1736504754242,6.69697757,191.84,191.78,3.0832]
[1736504755344,9.30347757,191.84,191.8,2.6069]
[1736504759143,6.69697757,191.84,191.78,3.0832]
[1736504759343,6.69697757,191.84,191.81,2.6068]
[1736504761440,6.69697757,191.84,191.82,2.6066]
[1736504761643,6.69697757,191.84,191.79,6.69697757]
[1736504761944,6.69697757,191.84,191.8,2.6069]
[1736504762139,6.69697757,191.84,191.79,6.69697757]
[1736504763746,6.69697757,191.88,191.81,6.69697757]
[1736504763940,6.69697757,191.86,191.78,3.0832]
[1736504764142,6.69697757,191.86,191.79,6.69697757]
[1736504764547,6.69697757,191.84,191.82,2.6066]
[1736504768247,6.69697757,191.84,191.8,2.6069]
[1736504768848,6.69697757,191.84,191.81,2.6068]
[1736504769446,6.69697757,191.84,191.78,3.0832]
[1736504769649,6.69697757,191.84,191.79,6.69697757]
[1736504770444,6.69697757,191.86,191.79,6.69697757]
[1736504770643,4.46,191.9,191.78,3.0832]
[1736504770644,6.69697757,191.88,191.81,6.69697757]
[1736504770840,6.69697757,191.88,191.83,6.69697757]
[1736504771249,4.46,191.91,191.83,6.69697757]
[1736504771544,6.69697757,191.9,191.83,6.69697757]
[1736504772147,6.69697757,191.9,191.87,2.606]
[1736504772652,6.061,191.93,191.84,2.6064]
[1736504772653,9.30297757,191.88,191.84,2.6064]
[1736504772847,6.69697757,191.88,191.82,6.69697757]
[1736504773947,6.69697757,191.88,191.78,3.0832]
[1736504774147,6.69697757,191.86,191.79,6.69697757]
[1736504775043,6.69697757,191.86,191.83,2.6065]
[1736504778960,6.69697757,191.86,191.84,2.6064]
[1736504779550,9.30317757,191.86,191.83,2.6065]
[1736504780756,2.6062,191.86,191.83,2.6065]
[1736504780958,9.30317757,191.86,191.83,2.6065]
[1736504792477,6.69697757,191.86,191.79,6.69697757]
[1736504793471,9.30317757,191.86,191.79,6.69697757]
[1736504793665,7.96548598,191.92,191.81,6.69697757]
[1736504793870,4.46,191.91,191.87,2.606]
[1736504794171,6.69697757,191.9,191.87,2.606]
[1736504795068,9.30257757,191.9,191.87,2.606]
[1736504798572,6.69697757,191.9,191.88,2.6058]
[1736504799372,9.30237757,191.92,191.89,2.6057]
[1736504799874,6.69697757,191.92,191.87,2.606]
[1736504800075,6.69697757,191.92,191.85,6.69697757]
[1736504801075,9.30237757,191.92,191.89,2.6057]
[1736504802475,6.69697757,191.9,191.84,9.86587757]
[1736504804178,6.69697757,191.9,191.87,2.606]
[1736504809284,6.69697757,191.9,191.88,2.6058]
[1736504810082,6.69697757,191.9,191.89,2.6057]
[1736504812383,6.69697757,191.9,191.84,3.1689]
[1736504813181,9.30257757,191.9,191.86,2.606]
[1736504814088,9.30257757,191.9,191.84,9.86587757]
[1736504814287,9.30257757,191.9,191.87,2.606]
[1736504814789,6.69697757,191.88,191.84,3.1689]
[1736504815287,6.69697757,191.88,191.86,2.6061]
[1736504816784,9.30257757,191.9,191.86,2.6061]
[1736504818088,6.69697757,191.92,191.86,6.69697757]
[1736504818290,11.06204184,191.94,191.86,6.69697757]
[1736504818588,13.66724184,191.94,191.9,2.6055]
[1736504820388,2.6052,191.93,191.9,2.6055]
[1736504820889,6.69697757,191.92,191.88,2.6058]
[1736504821086,6.69697757,191.9,191.84,3.1689]
[1736504821285,4.36506427,191.94,191.79,1.5154]
[1736504821593,6.69697757,191.86,191.82,2.6066]
[1736504821794,6.69697757,191.84,191.82,2.6066]
[1736504822090,6.69697757,191.85,191.82,2.6066]
[1736504822791,6.69697757,191.85,191.8,2.6069]
[1736504823492,6.69697757,191.83,191.79,2.6071]
[1736504824289,6.69697757,191.83,191.8,2.6069]
[1736504824996,6.69697757,191.83,191.81,2.6068]
[1736504825190,9.30327757,191.85,191.81,2.6068]
[1736504828890,6.69697757,191.83,191.75,1.5518]
[1736504829093,6.69697757,191.8,191.72,6.69697757]
[1736504829289,9.30407757,191.8,191.75,2.6076]
[1736504829595,6.69697757,191.78,191.72,6.69697757]
[1736504829989,6.69697757,191.78,191.7,9.84117757]
[1736504830994,6.69697757,191.78,191.74,2.6077]
[1736504832496,2.6072,191.79,191.74,2.6077]
[1736504833195,2.6072,191.79,191.75,2.6076]
[1736504839796,9.02654883,191.9,191.76,6.69697757]
[1736504840094,6.69697757,191.84,191.76,6.69697757]
[1736504840490,6.69697757,191.84,191.8,2.6069]
[1736504840889,6.69697757,191.84,191.78,6.69697757]
[1736504841295,9.30337757,191.84,191.8,2.6069]
[1736504841897,9.30337757,191.84,191.78,6.69697757]
[1736504842101,6.69697757,191.82,191.75,6.69697757]
[1736504842302,6.69697757,191.8,191.75,6.69697757]
[1736504842500,6.69697757,191.8,191.73,6.69697757]
[1736504842698,9.30407757,191.8,191.75,2.6075]
[1736504842894,6.69697757,191.8,191.75,2.6075]
[1736504843301,6.69697757,191.78,191.75,2.6075]
[1736504846897,2.6072,191.79,191.75,2.6075]
[1736504847097,6.69697757,191.8,191.75,2.6075]
[1736504847303,9.30427757,191.78,191.74,2.6078]
[1736504847901,6.69697757,191.78,191.71,1.6384]
[1736504848105,2.6075,191.76,191.73,2.6079]
[1736504850103,2.6074,191.77,191.73,2.6079]
[1736504851808,2.6074,191.77,191.72,6.69697757]
[1736504852105,2.6074,191.77,191.74,2.6077]
[1736504855808,2.6072,191.79,191.75,2.6075]
[1736504856907,9.30397757,191.8,191.75,2.6075]
[1736504857115,2.607,191.8,191.74,6.69697757]
[1736504857613,2.607,191.8,191.76,2.6074]
[1736504858115,11.15697757,191.82,191.74,6.69697757]
[1736504858315,2.6068,191.81,191.74,6.69697757]
[1736504858911,2.6068,191.81,191.77,2.6073]
[1736504860118,11.15697757,191.82,191.77,2.6073]
[1736504860314,2.607,191.8,191.77,2.6073]
[1736504860709,6.69697757,191.82,191.77,2.6073]
[1736504860710,2.6069,191.81,191.77,2.6073]
[1736504863116,9.30397757,191.8,191.71,1.6384]
[1736504863319,6.69697757,191.78,191.74,2.6077]
[1736504863819,9.30437757,191.78,191.74,2.6077]
[1736504865519,9.30437757,191.78,191.73,2.6079]
[1736504865721,2.6074,191.78,191.73,6.69697757]
[1736504866515,9.30387757,191.81,191.76,2.6074]
[1736504868024,2.607,191.8,191.76,2.6074]
[1736504868926,2.6071,191.79,191.76,2.6074]
[1736504870128,2.6073,191.78,191.74,2.6077]
[1736504870828,2.6073,191.78,191.73,2.6078]
[1736504871029,2.6073,191.78,191.72,6.69697757]
[1736504871626,2.6073,191.78,191.74,2.6077]
[1736504872326,2.6076,191.76,191.72,2.608]
[1736504872527,6.69697757,191.77,191.7,1.5137]
[1736504873333,6.69697757,191.75,191.71,2.6082]
[1736504874226,9.30477757,191.75,191.71,2.6082]
[1736504874626,9.30477757,191.75,191.72,2.608]
[1736504877534,6.69697757,191.75,191.72,2.608]
[1736504878436,2.6075,191.76,191.72,2.608]
[1736504881241,2.6075,191.76,191.73,2.6079]
[1736504882038,6.69697757,191.77,191.7,1.5137]
[1736504882240,6.69697757,191.77,191.74,2.6077]
[1736504883044,2.6073,191.78,191.75,2.6076]
[1736504883341,6.69697757,191.77,191.75,2.6076]
[1736504886841,9.02654883,191.82,191.71,6.69697757]
[1736504887048,6.69697757,191.81,191.75,6.69697757]
[1736504887344,6.69697757,191.81,191.7,1.5137]
[1736504887345,6.69697757,191.83,191.77,6.69697757]
[1736504887551,6.69697757,191.83,191.81,2.6068]
[1736504890246,6.69697757,191.83,191.8,2.6069]
[1736504891951,9.30387757,191.81,191.77,2.6074]
[1736504892551,6.69697757,191.79,191.77,2.6074]
[1736504894454,9.30407757,191.79,191.75,2.6076]
[1736504895556,6.69697757,191.77,191.71,1.5545]
[1736504897149,9.30437757,191.77,191.73,2.6079]
[1736504901957,9.30437757,191.77,191.74,2.6077]
[1736504902255,11.15697757,191.79,191.74,6.69697757]
[1736504902449,4.46,191.79,191.74,6.69697757]
[1736504902655,4.46,191.84,191.78,2.6072]
[1736504902855,9.30377757,191.82,191.76,6.69697757]
[1736504903255,9.30377757,191.82,191.78,2.6072]
[1736504904454,9.30377757,191.82,191.76,6.69697757]
[1736504904455,2.6068,191.82,191.79,2.6071]